Cogmind - Beta 13 @@@ ROGUE MODE // 2024.04.05 @ 14:57:01 Player: Compilatron Result: Destroyed by G-47 Trooper with Particle Gun Performance ------------- Evolutions (2) 1000 Regions Visited (3) 600 Robots Destroyed (35) 175 Value Destroyed (1153) 1153 Prototype IDs (0) 0 Alien Tech Used (0) 0 Bonus (39) 39 TOTAL SCORE: 2967 Bonus ------- High Alert Combat Kills 39 Cogmind --------- Core Integrity 0/550 Matter 109/300 Energy 100/100 System Corruption 0% Temperature Cool (27) Movement Core (50) Location -8/Materials Parts ------- > --- POWER (1) -------- (None) > --- PROPULSION (4) --- (None) > --- UTILITY (3) ------ Signal Interpreter > --- WEAPON (3) ------- (None) > --- INVENTORY (5) ---- Light Nuclear Core Aluminum Leg Aluminum Leg Visual Processing Unit Beam Rifle Peak State ------------ > --- POWER ------------ Improved Ion Engine > --- PROPULSION ------- Light Treads Light Treads Light Treads Light Treads > --- UTILITY ---------- Large Storage Unit Signal Interpreter > --- WEAPON ----------- Heavy Assault Rifle Heavy Assault Rifle Heavy Assault Rifle > --- INVENTORY -------- Improved Ion Engine Aluminum Leg Aluminum Leg Visual Processing Unit Beam Rifle Particle Cannon [Rating: 15] Favorites ----------- Power Ion Engine Engine Ion Engine Propulsion Light Treads Treads Light Treads Leg Aluminum Leg Wheel Wheel Utility Small Storage Unit Device Sensor Array Storage Small Storage Unit Processor Signal Interpreter Weapon Heavy Assault Rifle Energy Gun Small Laser Energy Cannon Particle Cannon Ballistic Gun Heavy Assault Rifle Launcher Mini Grenade Launcher Build | -11 -10 -9 -8 ------- Run | Yrd Mat Mat Mat Slots Evolved 4 | . . 2 2 Power . | . . . . Propulsion 2 | . . 2 . Utility 1 | . . . 1 Weapon 1 | . . . 1 Parts Attached 32 | 3 2 24 3 Power 3 | . . 3 . Engine 3 | . . 3 . Core . | . . . . Reactor . | . . . . Propulsion 17 | 2 2 13 . Treads 10 | 1 . 9 . Leg 6 | . 2 4 . Wheel 1 | 1 . . . Hover . | . . . . Flight . | . . . . Utility 4 | . . 4 . Device 1 | . . 1 . Storage 2 | . . 2 . Processor 1 | . . 1 . Hackware . | . . . . Protection . | . . . . Artifact . | . . . . Weapon 8 | 1 . 4 3 Energy Gun . | . . . . Energy Cannon 1 | . . 1 . Ballistic Gun 6 | 1 . 3 2 Ballistic Cannon . | . . . . Launcher 1 | . . . 1 Special Weapon . | . . . . Impact Weapon . | . . . . Slashing Weapon . | . . . . Piercing Weapon . | . . . . Special Melee Weapon . | . . . . Unidentified Prototypes . | . . . . Parts Lost 18 | . . 9 9 Power 2 | . . 1 1 Propulsion 9 | . . 5 4 Utility 2 | . . 2 . Weapon 5 | . . 1 4 Highest Loss Streak 9 | . . 6 9 To Critical Strikes . | . . . . Average Slot Usage (%) 83 | . 85 85 74 Engine 11 | . 14 10 7 Treads 18 | . . 28 28 Leg 15 | . 26 11 . Device 2 | . . 3 . Storage 12 | . 14 12 7 Processor 1 | . . . 9 Energy Gun 5 | . 14 . . Energy Cannon 4 | . . 9 . Ballistic Gun 12 | . 14 9 21 Naked Turns . | . . . . Heaviest Build 36 | 13 13 35 36 Greatest Support 80 | 10 20 80 80 Greatest Overweight (x) 4 | 1 1 4 . Average Overweight (x) . | 1 . . . Largest Inventory Capacity 15 | 8 8 15 15 Average Capacity 9 | 8 8 9 13 Most Carried 11 | 6 8 11 8 Average Carried 6 | 6 6 6 6 Final Capacity 15 | 8 8 15 5 Final Carried 8 | 6 8 7 5 Class Distribution -------------------- 68% | Mutant 21% | Scavenger-Mutant 10% | Scavenger-Gunner Dominant Class ---------------- Mutant | -10/Materials Mutant | -9/Materials Scavenger-Gunner | -8/Materials Resources | -11 -10 -9 -8 ----------- Run | Yrd Mat Mat Mat Matter Collected 791 | 230 198 363 . Remotely . | . . . . Salvage Created 1495 | . 268 1033 194 Parts 88 | . 12 67 9 Haulers Intercepted . | . . . . Recyclers Shooed 4 | . 1 3 . Parts Field Recycled . | . . . . Retrieved Matter . | . . . . Parts Self-Destructed . | . . . . Prevented . | . . . . Kills | -11 -10 -9 -8 ------- Run | Yrd Mat Mat Mat Combat Hostiles Destroyed 32 | . 4 24 4 Guns 20 | . 4 12 4 Cannons 12 | . . 12 . Classes Destroyed 7 | . 2 5 . Recycler 2 | . 1 1 . Watcher 1 | . . 1 . Swarmer 6 | . . 6 . Grunt 19 | . 4 11 4 Brawler 1 | . . 1 . Duelist 1 | . . 1 . Sentry 5 | . . 5 . Best Kill Streak 6 | . 4 6 4 Combat Bots Only 5 | . 3 5 4 Max Kills in Single Turn 1 | . 1 1 1 Gunslinging . | . . . . Exploded . | . . . . Melee . | . . . . Uniques/NPCs Destroyed . | . . . . Combat | -11 -10 -9 -8 -------- Run | Yrd Mat Mat Mat Hostile Shots Fired 278 | . 21 137 120 Missed 82 | . 2 41 39 Damage Taken 3022 | . 259 1384 1379 Core 786 | . 63 168 555 Absorbed by Shields . | . . . . Core Remaining (%) 77 | 100 74 58 . Volleys Fired 133 | . 26 93 14 Largest 3 | . 2 2 3 Hottest 91 | . 60 91 76 Shots Fired 218 | . 51 126 41 Gun 154 | . 51 65 38 Cannon 61 | . . 61 . Launcher 3 | . . . 3 Special . | . . . . Kinetic 129 | . 26 65 38 Thermal 86 | . 25 61 . Explosive 3 | . . . 3 Electromagnetic . | . . . . Robot Hit Streak 9 | . 6 7 9 Robot Miss Streak 5 | . 5 5 4 Penetration Max . | . . . . Secondary Targets 2 | . . 1 1 Max Gunslinging Chain 1 | . . 1 1 Shots Hit Robots 118 | . 33 62 23 Core Hits 61 | . 13 32 16 Critical Kills . | . . . . Critical Parts Destroyed . | . . . . Critical Strikes . | . . . . Melee Attacks . | . . . . Impact . | . . . . Slashing . | . . . . Piercing . | . . . . Sneak Attacks . | . . . . Combat Hostiles . | . . . . Follow-up Attacks . | . . . . Damage Inflicted 2220 | . 402 1172 646 Guns 1341 | . 402 554 385 Cannons 613 | . . 613 . Explosions 247 | . . . 247 Melee . | . . . . Ramming 19 | . . 5 14 Kinetic 1198 | . 259 554 385 Thermal 756 | . 143 613 . Explosive 247 | . . . 247 Electromagnetic . | . . . . Impact . | . . . . Slashing . | . . . . Piercing . | . . . . Highest Corruption 5 | . . 5 . Average Corruption 4 | . . 4 . Corruption Purged . | . . . . Corruption Blocked . | . . . . Effects 13 | . . 13 . Message Errors 2 | . . 2 . Matter Fused 3 | . . 3 . Heat Flow Errors 2 | . . 2 . Energy Discharges 2 | . . 2 . Misfires 3 | . . 3 . Alerts 1 | . . 1 . Overload Shots . | . . . . Overflow Damage 3 | . . . 3 Projectiles . | . . . . Explosions 3 | . . . 3 Melee . | . . . . Knockbacks . | . . . . Impact . | . . . . Kinetic . | . . . . Secondary . | . . . . Self-Inflicted Damage 78 | . . . 78 Shots 2 | . . . 2 Rammed 4 | . . 2 2 Targets Rammed 4 | . . 2 2 Kicked . | . . . . Crushed . | . . . . Highest Temperature 479 | . 60 479 121 Average Temperature 136 | . 32 178 31 Received Heat Transfer 1122 | . 141 324 657 Effects 1 | . . 1 . Interference 1 | . . 1 . Siege Activations . | . . . . Robots Corrupted . | . . . . Combat Hostiles . | . . . . Parts Fried . | . . . . Impact Corruptions . | . . . . Robots Melted . | . . . . Combat Hostiles . | . . . . Parts Melted 2 | . . 2 . Heat Transferred 1435 | . 325 1110 . Parts Sabotaged . | . . . . Parts Stolen . | . . . . Parts Stripped . | . . . . Power Chain Reactions . | . . . . Alert | -11 -10 -9 -8 ------- Run | Yrd Mat Mat Mat Peak Influence 466 | . 156 466 348 Initial 196 | . . 8 196 Average 184 | . 53 257 246 Maximum Alert Level 2 | . . 2 1 Low Security (%) 50 | 100 100 24 23 Level 1 41 | . . 61 76 Level 2 7 | . . 14 . Level 3 . | . . . . Level 4 . | . . . . Level 5 . | . . . . High Security . | . . . . Max Security . | . . . . Squads Dispatched 5 | . . 4 1 Investigation 1 | . . 1 . Extermination . | . . . . Reinforcement 4 | . . 3 1 Assault . | . . . . Garrison . | . . . . Intercept . | . . . . Searches Triggered . | . . . . Construction Impeded . | . . . . Haulers Reinforced . | . . . . Active Scanning Responses . | . . . . Cargo Convoy Interrupts . | . . . . Stealth | -11 -10 -9 -8 --------- Run | Yrd Mat Mat Mat Distress Signals 5 | . . 2 3 Communications Jammed . | . . . . Distress Signals . | . . . . Times Spotted 62 | . 9 32 21 Peak Tracking Total 17 | . 3 6 17 Tactical Retreats 3 | . 1 1 1 Traps | -11 -10 -9 -8 ------- Run | Yrd Mat Mat Mat Traps Triggered 1 | . . 1 . Indirectly . | . . . . Trap Hack Attempts . | . . . . Triggered . | . . . . Disarmed . | . . . . Reprogrammed . | . . . . Reused . | . . . . Traps Extracted . | . . . . Installed . | . . . . Triggered . | . . . . Machines | -11 -10 -9 -8 ---------- Run | Yrd Mat Mat Mat Machines Disabled 2 | . . 2 . Max in Single Turn 1 | . . 1 . Machines Repaired . | . . . . Machines Dismantled . | . . . . Machines Sabotaged . | . . . . Overloaded Fab Kills . | . . . . Hacking | -11 -10 -9 -8 --------- Run | Yrd Mat Mat Mat Machines Accessed 8 | . 5 3 . Terminals 7 | . 4 3 . Fabricators . | . . . . Repair Stations . | . . . . Recycling Units 1 | . 1 . . Scanalyzers . | . . . . Garrison Access . | . . . . Total Hacks 17 | . 11 6 . Successful 10 | . 6 4 . Failed 7 | . 5 2 . Catastrophic 1 | . 1 . . Database Lockouts . | . . . . Manual 8 | . 8 . . Terminals 13 | . 7 6 . Fabricators . | . . . . Repair Stations . | . . . . Recycling Units 4 | . 4 . . Scanalyzers . | . . . . Garrison Access . | . . . . Terminal Hacks 6 | . 2 4 . Part Schematic 1 | . 1 . . Alert Level 1 | . . 1 . Locate Traps 2 | . . 2 . Zone Layout 2 | . 1 1 . Fabricator Hacks . | . . . . Repair Station Hacks . | . . . . Recycling Unit Hacks 1 | . 1 . . Report Inventory 1 | . 1 . . Scanalyzer . | . . . . Garrison Access Hacks . | . . . . Unauthorized Hacks 3 | . 3 . . Terminals 2 | . 2 . . Assimilate 1 | . 1 . . Operators 1 | . 1 . . Fabricators . | . . . . Repair Stations . | . . . . Recycling Units 1 | . 1 . . Reject 1 | . 1 . . Scanalyzers . | . . . . Garrison Access . | . . . . Data Cores Recovered . | . . . . Used . | . . . . Hacking Detections 6 | . 4 2 . Full Trace Events . | . . . . Feedback Events . | . . . . Feedback Blocked . | . . . . Robot Schematics Acquired . | . . . . Robots Built . | . . . . Authchips . | . . . . Time . | . . . . Total Robot Build Rating . | . . . . Part Schematics Acquired 1 | . 1 . . Parts Built . | . . . . Authchips . | . . . . Time . | . . . . Total Part Build Rating . | . . . . Parts Repaired . | . . . . Time . | . . . . Parts Recycled . | . . . . Recycled Matter . | . . . . Retrieved Matter . | . . . . Retrieved Components . | . . . . Parts Scanalyzed . | . . . . Part Schematics Acquired . | . . . . Parts Damaged . | . . . . Bothacking | -11 -10 -9 -8 ------------ Run | Yrd Mat Mat Mat Used RIF Installer . | . . . . Robots Hacked . | . . . . Non-combat . | . . . . Combat . | . . . . Robot Hacks Applied . | . . . . Relay Couplers Released . | . . . . Fabnet Peak Effective % . | . . . . Robots Rewired . | . . . . Allies Hacked . | . . . . Hacks Repelled . | . . . . Allies | -11 -10 -9 -8 -------- Run | Yrd Mat Mat Mat Total Allies 1 | . 1 . . Largest Group 1 | . 1 1 . Highest-Rated Group 10 | . 10 10 . Highest-Rated Ally 10 | . 10 10 . Total Orders . | . . . . Ally Attacks . | . . . . Total Damage . | . . . . Kills . | . . . . Allies Corrupted . | . . . . Allies Melted . | . . . . Intel | -11 -10 -9 -8 ------- Run | Yrd Mat Mat Mat Robot Analysis Total . | . . . . Derelict Logs Recovered . | . . . . Drone Launches . | . . . . Drone Recoveries . | . . . . Exploration | -11 -10 -9 -8 ------------- Run | Yrd Mat Mat Mat Turns Passed 1364 | 8 466 731 159 Spaces Moved 690 | 4 284 310 92 Core 54 | . . 8 46 Treads 247 | . . 201 46 Legs 360 | . 259 101 . Wheels 29 | 4 25 . . Hover . | . . . . Flight . | . . . . Fastest Speed 50 | 95 95 120 50 Average Speed 129 | 95 117 148 105 Slowest Speed 250 | 95 120 250 160 Overloaded Moves . | . . . . Propulsion Burnouts . | . . . . Robots Hopped . | . . . . Cave-ins Triggered . | . . . . Exploration Rate (%) 21 | 2 34 37 12 Regions Visited 3 Branch Regions . Pre-discovered Areas . | . . . . Known Exits Taken 1 | . . 1 . Unknown Exits Taken 2 | 1 1 . . Scrap Searched . | . . . . Spaces Dug . | . . . . Terrain Destroyed 22 | . . . 22 Melee . | . . . . Projectile . | . . . . AOE 22 | . . . 22 Terrain Rammed . | . . . . Walls Destroyed . | . . . . Machines Disabled . | . . . . Actions | -11 -10 -9 -8 --------- Run | Yrd Mat Mat Mat Total 949 | 6 364 460 119 Wait 57 | . 49 3 5 Move 687 | 3 283 309 92 Hop . | . . . . Pick Up 22 | . 3 17 2 Fast Attach 1 | . . 1 . Attach 15 | . 1 12 2 Detach 1 | . . 1 . Swap 16 | 3 1 11 1 Drop 13 | . 1 11 1 Fire 133 | . 26 93 14 Melee . | . . . . Ram 2 | . . . 2 Kick . | . . . . Crush 2 | . . 2 . Escape Stasis . | . . . . Rewire . | . . . . Trap . | . . . . Miscellaneous . | . . . . Route ------- -11/Scrapyard -10/Materials -9/Materials (discovered 3 exits: *Mat / *Min x2) -8/Materials History --------- Turn | Location | Event 4 | -11/Scrapyard | Discovered new exit (range 2) 9 | -11/Scrapyard | Entered Materials 185 | -10/Materials | Discovered new exit (range 15) 304 | -10/Materials | Build established: Mutant 475 | -10/Materials | Entered another Materials area 475 | -9/Materials | Accompanied by 1 ally 475 | -9/Materials | Evolved 2 slots: Propulsion x2 668 | -9/Materials | Lost 6 parts (1p4n1u) 825 | -9/Materials | Discovered new exit (range 16) 1156 | -9/Materials | Discovered new exit (range 10) 1176 | -9/Materials | Discovered new exit (range 9) 1193 | -9/Materials | Identified exit to Mines 1204 | -9/Materials | Identified exit to Materials 1206 | -9/Materials | Entered another Materials area 1206 | -8/Materials | Evolved 2 slots: Utility x1, Weapon x1 1347 | -8/Materials | Core integrity fell below 50% 1361 | -8/Materials | Core integrity fell below 20% 1365 | -8/Materials | Destroyed by G-47 Trooper with Particle Gun Last Messages --------------- 01338_ K-01 Serf collects debris. 01338_ Critical hit (Burn: +37). 01338_ Hvy. Assault Rifle destroyed. 01339_ U-05 Engineer lays Concrete. 01340_ G-47 Trooper suffers critical hit (Burn). 01340_ Hvy. Assault Rifle destroyed. 01340_ U-05 Engineer lays Concrete. 01340_ Dropped Lrg. Storage Unit. 01340_ U-05 Engineer lays Concrete. 01340_ K-01 Serf collects debris. 01341_ U-05 Engineer lays Concrete. 01343_ K-01 Serf collects debris. 01345_ T-07 Excavator is excavating. 01345_ U-05 Engineer lays Concrete. 01346_ Critical hit (Burn: +37). 01351_ Slammed into Y-45 Defender. 01351_ Destabilizing: System interference. 01351_ Signal Interpreter temporarily disabled. 01360_ Penetrated by Slug. 01365_ Slug penetrates G-47 Trooper. Map ----- +----------------------------------------------------+ | ?????????????????????????????????????????????????? | | ?????????????????????????????????????????????????? | | ?????????????????????????????????????????????????? | | ?????????????????????????????????????????????????? | | ?????????????????????????????????????????????????? | | ?????????????????????????????????????????????????? | | ????????????????????????#????????????????????????? | | ???????????????????????? ##??????????????????????? | | ??????????????????????### ###????????????????????? | | ???????????########??## #????????????????????? | | ??????????? ??? ##???????????????????? | | ???????????? ???? T ????????????????????? | | ???????????? ?????? #????????????????????? | | ???########## #?????? w#????????????????????? | | ???# """ # ######## #?????????????????????? | | ???# "R" # # ! # #??????#??????????????? | | ???# " " # # # #???? #??????????????? | | ???# # # + #?? #??????????????? | | ???# + # # # """ #??????????????? | | ???# """"" # # # + """ #??????????????? | | ???# """"" # # ! # # """ #??????????????? | | ???# """"" ] #ggo#?? =#??????????????? | | ???# ! /# #???? #??????????????? | | ###### ** ! #ggg#??????#??????????????? | | * %* # #######???????????????? | | =%[ % = # @ ## !#???????????????? | | = ##### ## #???????????????? | | ####### ## #####??## ## #???????????????? | | #?????#### ??????# # #???????????????? | | #????????# ####gY + #???????????????? | | #????????# / hY # #???????????????? | | #????????# #### # ! #???????????????? | | #????????# ????# # #???????????????? | | #????????# ???####+########???????????????? | | #????????# ??# #??????????????????? | | #????????# ??# """ #??????????????????? | | #????????###+#######?# """ #??????????????????? | | #??????????# ????????# """ #??????????????????? | | +??????????#+????????# #??????????????????? | | #????????????????????# *** #??????????????????? | | ?????????????????????# *** #??????????????????? | | ?????????????????????# ** #??????????????????? | | ?????????????????????# ??????????????????? | | ?????????????????????##########??????????????????? | | ?????????????????????????????????????????????????? | | ?????????????????????????????????????????????????? | | ?????????????????????????????????????????????????? | | ?????????????????????????????????????????????????? | | ?????????????????????????????????????????????????? | | ?????????????????????????????????????????????????? | +----------------------------------------------------+ Best States ------------- Heat Dissipation 31 Energy Generation 12 Energy Capacity 265 Matter Stores 400 Matter Capacity 400 Sight Range 16 Robot Scan Range 14 Terrain Scan Density 10 Evasion (%) 55 Recoil Reduction 4 Item Schematics ----------------- Assault Rifle | -10/Materials | Hacked Robot Schematics ------------------ None Fabricated ------------ Nothing Alien Tech Used ----------------- None Achievements -------------- None Challenges ------------ None Game ------ Seed AdvancedWaveFalx Manual? 0 Play Time 00:16:55 Cumulative 28.7 hours Start 2024.04.05 @ 14:41:58 End 2024.04.05 @ 14:57:01 Sessions 1 Manual Loads 0 Difficulty Rogue Special Mode None Game No. 35 Rogue 13 Adventurer 20 Explorer 2 Win Type - Total 0 Types 0/0/0/0/0/0/0/0/0 Lore% 34 Gallery% 29 Achievement% 26 Wizard Run 0 Options --------- Layout 1 ASCII 0 Keyboard 0 Movement Numpad Keybinds 0 Fullscreen 1 Font 24/Smallcaps Map View 50x35 Zoom Use 0% Tactical HUD 1 Map Filters NONE Filters NONE Steam 1 RUN: e0feca30-d541-4cbf-b487-767dd0a6d3e5